lending/lending_fUSD_20240622
["ID","MTS","AMOUNT","RATE_DAILY","PERIOD"]
[330191344,1719094245111,-332.68147757,0.0002,2]
[330191345,1719094245121,-151.0,0.0002,2]
[330191346,1719094245131,-332.68147757,0.0002,2]
[330191347,1719094245140,-332.68147757,0.0002,2]
[330191348,1719094245149,-332.68147757,0.0002,2]
[330191349,1719094245158,-332.68147757,0.0002,2]
[330191350,1719094245168,-151.0,0.0002,2]
[330191351,1719094245177,-332.68147757,0.0002,2]
[330191352,1719094245186,-332.68147757,0.0002,2]
[330191353,1719094245196,-332.68147757,0.0002,2]
[330191354,1719094245205,-332.68147757,0.0002,2]
[330191355,1719094245215,-332.68147757,0.0002,2]
[330191356,1719094245224,-200.0,0.00020019,2]
[330191357,1719094245235,-790.0,0.000201,2]
[330191358,1719094245244,-899.0,0.000201,2]
[330191359,1719094245253,-252.658497,0.000201,2]
[330191360,1719094245263,-3308.57847286,0.00020123,2]
[330191361,1719094245272,-232.62522756,0.00020146,2]
[330191362,1719094245281,-32704.67900748,0.000202,2]
[330191363,1719094245291,-151.0,0.000202,2]
[330191364,1719094245300,-151.0,0.000202,2]
[330191365,1719094245309,-151.0,0.000202,2]
[330191366,1719094245320,-151.0,0.000202,2]
[330191367,1719094245330,-151.0,0.000202,2]
[330191368,1719094245339,-1915.0,0.000203,2]
[330191369,1719094245349,-458.17,0.00020311,2]
[330191370,1719094245359,-11042.85850513,0.00020355,2]
[330191371,1719094245368,-616.0,0.00020548,2]
[330191372,1719094245377,-543.216952,0.00020548,2]
[330191373,1719094245386,-297.0,0.0002063,2]
[330191374,1719094245395,-3275.22121635,0.00020798,2]
[330191375,1719094245405,-151.0,0.00020798,2]
[330191376,1719094245415,-151.0,0.00020798,2]
[330191377,1719094245424,-151.0,0.00020798,2]
[330191378,1719094245433,-151.0,0.00020798,2]
[330191379,1719094245443,-151.0,0.00020798,2]
[330191380,1719094245452,-26340.10825471,0.000208,2]
[330191381,1719094245461,-114092.65239124,0.000208,2]
[330191382,1719094245471,-151.0,0.000208,2]
[330191383,1719094245480,-151.0,0.000208,2]
[330191384,1719094245490,-151.0,0.000208,2]
[330191385,1719094245500,-151.0,0.000208,2]
[330191386,1719094245510,-151.0,0.000208,2]
[330191387,1719094245519,-251.698116,0.000208,2]
[330191388,1719094245529,-151.0,0.000208,2]
[330191389,1719094245538,-151.0,0.000208,2]
[330191390,1719094245548,-151.0,0.000208,2]
[330191391,1719094245558,-151.0,0.000208,2]
[330191392,1719094245569,-123255.208602,0.000208,3]
[330191393,1719094245580,-151.0,0.000208,2]
[330191394,1719094245590,-151.0,0.000208,2]
[330191395,1719094245600,-206.042862,0.000208,2]
[330191396,1719094245609,-151.0,0.000208,2]
[330191397,1719094245619,-151.0,0.000208,2]
[330191398,1719094245629,-151.0,0.000208,2]
[330191399,1719094245638,-151.0,0.000208,2]
[330191400,1719094245650,-260.11,0.000208,2]
[330191401,1719094245660,-155.230586,0.000208,2]
[330191402,1719094245669,-151.0,0.000208,2]
[330191403,1719094245679,-151.0,0.000208,2]
[330191404,1719094245690,-151.0,0.000208,2]
[330191405,1719094245699,-151.0,0.000208,2]
[330191406,1719094245708,-151.0,0.000208,2]
[330191407,1719094245717,-1168.713477,0.000208,2]
[330191408,1719094245727,-1168.713477,0.000208,2]
[330191409,1719094245736,-151.0,0.000208,2]
[330191410,1719094245746,-151.0,0.000208,2]
[330191411,1719094245755,-151.0,0.000208,2]
[330191412,1719094245766,-252.84306919,0.000209,2]
[330191413,1719094245775,-11042.85850513,0.000209,2]
[330191414,1719094245785,-178.13350205,0.000209,2]
[330191415,1719094245795,-232.62522756,0.000209,2]
[330191416,1719094245804,-213.03593627,0.000209,3]
[330191417,1719094245814,-201.39580507,0.000209,2]
[330191418,1719094245823,-311.39396059,0.000209,2]
[330191419,1719094245832,-553.08234318,0.000209,2]
[330191420,1719094245841,-336.43056536,0.000209,2]
[330191421,1719094245851,-2055.19695872,0.000209,2]
[330191422,1719094245861,-3308.57847286,0.000209,2]
[330191423,1719094245872,-1000.0,0.000209,2]
[330191424,1719094245883,-786.362247,0.00020935,2]
[330191425,1719094245892,-180.14564,0.00020935,2]
[330191426,1719094245902,-178.57691,0.00020935,2]
[330191427,1719094245912,-675.703491,0.00020935,2]
[330191428,1719094245922,-160.591228,0.00020935,2]
[330191429,1719094245932,-165.781951,0.00020935,2]
[330191430,1719094245941,-54026.50898018,0.00020997,2]
[330191431,1719094245951,-517.5827999,0.00020999,2]
[330191432,1719094245961,-1152.31990522,0.00020999,5]
[330191433,1719094245971,-369725.33437823,0.00021,7]
[330191435,1719094245981,-134611.45311954,0.00021,4]
[330191436,1719094246276,-439.61,0.00015616,2]
[330191437,1719094246288,-60.38,0.00015616,2]
[330191438,1719094246298,-1168.713477,0.0002,2]
[330191439,1719094246307,-332.68147757,0.0002,2]
[330191440,1719094246316,-332.68147757,0.0002,2]
[330191441,1719094246325,-332.68147757,0.0002,2]
[330191442,1719094246335,-332.68147757,0.0002,2]
[330191443,1719094246345,-332.68147757,0.0002,2]
[330191444,1719094246355,-332.68147757,0.0002,2]
[330191445,1719094246364,-332.68147757,0.0002,2]
[330191446,1719094246374,-332.68147757,0.0002,2]
[330191447,1719094246384,-332.68147757,0.0002,2]
[330191448,1719094246393,-332.68147757,0.0002,2]
[330191449,1719094246403,-332.68147757,0.0002,2]
[330191450,1719094246412,-292.11268091,0.00020595,2]
[330191451,1719094246422,-1168.713477,0.000208,2]
[330191452,1719094246432,-1168.713477,0.000208,2]
[330191453,1719094246441,-352.83544418,0.00021,4]
[330191454,1719094246453,-1488.72054829,0.00021,4]
[330191465,1719095431860,-209.71396729,0.00013699,2]
[330191466,1719095431870,-254.0,0.00017274,2]
[330191467,1719095431879,-227.46603271,0.00017274,2]
[330191468,1719095431988,-163.00396729,0.00017274,2]
[330191469,1719095431997,-11746.0,0.000173,5]
[330191470,1719095432006,-159.37216947,0.00017661,2]
[330191471,1719095432015,-150.0,0.00018888,2]
[330191472,1719095432024,-430.89,0.00018888,2]
[330191473,1719095432033,-150.0,0.00018968,2]
[330191474,1719095432042,-162.2,0.00019008,2]
[330191475,1719095432052,-182.89,0.00019022,2]
[330191476,1719095432066,-200.0,0.00019024,2]
[330191477,1719095432075,-716.98,0.00019034,2]
[330191478,1719095432084,-150.0,0.00019049,2]
[330191479,1719095432093,-8389.84,0.00019059,2]
[330191480,1719095432103,-2751.0,0.00019107,2]
[330191481,1719095432111,-22965.33081909,0.00019129,2]
[330191482,1719095432123,-904.66918091,0.00019129,2]
[330191483,1719095432132,-150.0,0.0001913,2]
[330191484,1719095432141,-322.12,0.00019151,2]
[330191485,1719095432150,-3050.51445822,0.00019161,2]
[330191486,1719095432161,-1751.49456492,0.00019161,2]
[330191487,1719095432172,-626.85191041,0.00019161,2]
[330191488,1719095432184,-4571.13906645,0.00019161,2]
[330191489,1719095432193,-1000.0,0.00019161,2]
[330191490,1719095432202,-1000.0,0.00019162,2]
[330191491,1719095432212,-406.95,0.00019162,2]
[330191492,1719095432221,-250.0,0.00019178,2]
[330191493,1719095432230,-150.0,0.00019211,4]
[330191494,1719095432240,-250.0,0.00019257,2]
[330191495,1719095432248,-150.0,0.00019291,4]
[330191496,1719095432257,-150.0,0.00019293,2]
[330191497,1719095432267,-173.11,0.00019321,2]
[330191498,1719095432276,-16083.9,0.00019321,2]
[330191499,1719095432285,-150.0,0.00019372,4]
[330191501,1719095432294,-751.0,0.000194,2]
[330191502,1719095432303,-154.41,0.00019433,2]
[330191504,1719095432312,-150.0,0.00019453,4]
[330191506,1719095432322,-446.0,0.00019456,2]
[330191507,1719095432331,-150.0,0.00019456,2]
[330191508,1719095432340,-1295.0,0.00019456,2]
[330191509,1719095432350,-2127.849,0.00019456,2]
[330191510,1719095432358,-292.348,0.00019456,2]
[330191511,1719095432368,-547.0,0.00019456,2]
[330191512,1719095432376,-1968.0,0.00019456,2]
[330191513,1719095432385,-4408.601,0.00019456,2]
[330191514,1719095432395,-1830.0,0.00019456,2]
[330191515,1719095432404,-359.0,0.00019456,2]
[330191516,1719095432414,-809.0,0.000195,2]
[330191517,1719095432423,-150.0,0.00019533,4]
[330191518,1719095432432,-390.47,0.00019538,2]
[330191519,1719095432442,-150.0,0.00019614,4]
[330191520,1719095432452,-150.0,0.00019695,4]
[330191521,1719095432461,-150.0,0.00019776,4]
[330191522,1719095432470,-150.0,0.00019856,4]
[330191523,1719095432479,-150.0,0.00019937,4]
[330191524,1719095432488,-154.41,0.00019939,2]
[330191525,1719095432497,-150.0,0.00020018,4]
[330191526,1719095432507,-351.88844729,0.0002003,2]
[330191527,1719095432516,-150.0,0.00020098,4]
[330191528,1719095432525,-150.0,0.00020179,4]
[330191529,1719095432534,-150.0,0.0002026,4]
[330191530,1719095432544,-150.0,0.00020341,4]
[330191531,1719095432553,-150.0,0.00020421,4]
[330191532,1719095432563,-154.41,0.00020446,2]
[330191533,1719095432572,-180.89,0.00020471,2]
[330191534,1719095432581,-150.0,0.00020502,4]
[330191535,1719095432591,-150.0,0.00020521,2]
[330191536,1719095432600,-375.58,0.00020521,2]
[330191537,1719095432609,-150.0,0.00020583,4]
[330191538,1719095432618,-150.0,0.00020663,4]
[330191539,1719095432627,-1189.97257813,0.000207,2]
[330191540,1719095432636,-1189.97257808,0.00020722,2]
[330191541,1719095432646,-211.9917,0.0002073,2]
[330191542,1719095432654,-150.0,0.00020744,4]
[330191543,1719095432664,-1189.97257808,0.00020744,2]
[330191544,1719095432672,-1189.97257808,0.00020767,2]
[330191545,1719095432682,-1189.97257808,0.00020789,2]
[330191546,1719095432691,-151.96926,0.00020789,2]
[330191547,1719095432699,-24030.40110865,0.0002079,2]
[330191548,1719095432707,-346.9801,0.000208,2]
[330191549,1719095432715,-3286.3388,0.000208,2]
[330191550,1719095432725,-221.6582,0.000208,2]
[330191551,1719095432734,-24546.1676,0.000208,2]
[330191552,1719095432743,-1390.5935,0.000208,2]
[330191553,1719095432752,-792.23059845,0.000208,2]
[330191554,1719095432760,-308.59247043,0.00020802,2]
[330191555,1719095432770,-792.23059839,0.00020811,2]
[330191556,1719095432779,-1189.97257808,0.00020811,2]
[330191557,1719095432788,-792.23059839,0.00020822,2]
[330191558,1719095432798,-150.0,0.00020825,4]
[330191559,1719095432806,-1000.0,0.0002083,2]
[330191560,1719095432815,-500.0,0.0002083,2]
[330191561,1719095432824,-200.0,0.00020831,2]
[330191562,1719095432833,-1000.0,0.00020831,2]
[330191563,1719095432842,-500.0,0.00020831,2]
[330191564,1719095432851,-200.0,0.00020831,2]
[330191565,1719095432860,-792.23059839,0.00020833,2]
[330191566,1719095432869,-1189.97257808,0.00020833,2]
[330191567,1719095432879,-792.23059839,0.00020844,2]
[330191568,1719095432888,-792.23059839,0.00020856,2]
[330191569,1719095432898,-1189.97257808,0.00020856,2]
[330191570,1719095432907,-792.23059839,0.00020867,2]
[330191571,1719095432916,-792.23059839,0.00020878,2]
[330191572,1719095432926,-1189.97257808,0.00020878,2]
[330191573,1719095432935,-792.23059839,0.00020889,2]
[330191574,1719095432944,-1134.59638182,0.00020899,2]
[330191575,1719095432954,-5305.8187,0.000209,2]
[330191576,1719095432964,-1000.0,0.000209,2]
[330191577,1719095432974,-397.4009,0.000209,2]
[330191578,1719095432983,-832.2808,0.000209,2]
[330191579,1719095432992,-500.0,0.000209,2]
[330191580,1719095433001,-3207.3552,0.000209,2]
[330191581,1719095433010,-1196.3787942,0.000209,2]
[330191582,1719095433023,-8803.6212058,0.000209,2]
[330191583,1719095433034,-19043.4093942,0.000209,2]
[330191584,1719095433045,-70925.3865058,0.000209,2]
[330191585,1719095433056,-34808.818,0.000209,2]
[330191586,1719095433071,-76073.8621,0.000209,2]
[330191587,1719095433081,-169.15075272,0.000209,2]
[330191588,1719095433091,-500.0,0.000209,2]
[330191589,1719095433100,-792.23059839,0.000209,2]
[330191590,1719095433109,-7500.0,0.000209,2]
[330191591,1719095433118,-1370.13130582,0.000209,2]
[330191592,1719095433127,-1189.97257808,0.000209,2]
[330191593,1719095433137,-150.0,0.00020906,4]
[330191594,1719095433149,-197.63225392,0.00020986,4]
[330191595,1719095433158,-151.103603,0.00020995,2]
[330191596,1719095433167,-16283.3512424,0.00020995,2]
[330191597,1719095433177,-979.47013867,0.00020998,2]
[330191598,1719095433186,-2982.27581,0.00020999,2]
[330191599,1719095433196,-1111.0,0.00020999,7]
[330191600,1719095433206,-1111.0,0.00020999,7]
[330191601,1719095433215,-1111.0,0.00020999,7]
[330191602,1719095433225,-1111.0,0.00020999,7]
[330191603,1719095433235,-373.55,0.00020999,7]
[330191604,1719095433244,-557.0,0.00021,2]
[330191605,1719095433253,-184862.66718912,0.00021,7]
[330191606,1719095433262,-53343.02265604,0.00021,4]
[330191607,1719095433275,-147351.7712992,0.00021,4]
[330191608,1719095433287,-2542.68157995,0.00021,4]
[330191609,1719095437832,-1270.0,0.00019456,2]
[330191610,1719095437842,-169.66755356,0.0002069,2]
[330191611,1719095437851,-169.66755356,0.00020712,2]
[330191612,1719095437861,-169.66755356,0.00020734,2]
[330191613,1719095437871,-169.66755356,0.00020757,2]
[330191614,1719095437880,-169.66755356,0.0002078,2]
[330191615,1719095437890,-169.66755356,0.0002078,2]
[330191616,1719095437900,-169.66755356,0.0002078,2]
[330191617,1719095437910,-169.66755356,0.0002078,2]
[330191618,1719095437920,-169.66755356,0.0002078,2]
[330191619,1719095437929,-169.66755356,0.0002078,2]
[330191620,1719095437939,-169.66755356,0.0002078,2]
[330191621,1719095437949,-169.66755356,0.0002078,2]
[330191622,1719095437959,-169.66755356,0.0002078,2]
[330191623,1719095437968,-169.66755356,0.0002078,2]
[330191624,1719095437978,-169.66755356,0.0002078,2]
[330191625,1719095437988,-169.66755356,0.0002078,2]
[330191626,1719095437997,-169.66755356,0.0002078,2]
[330191627,1719095438007,-169.66755356,0.0002078,2]
[330191628,1719095438016,-169.66755356,0.0002078,2]
[330191629,1719095438026,-749.54815204,0.00021,4]
[330191630,1719095438038,-5638.59697852,0.00021,4]
[330191631,1719095438050,-655.82000289,0.00021,4]
[330191632,1719095438067,-1004.47677031,0.00021,4]
[330191633,1719095438079,-5115.537408,0.00021,4]
[330191634,1719095438091,-1969.22712928,0.00021,4]
[330191635,1719095438138,-1654.53650654,0.00021,4]
[330191636,1719095438153,-667.76472037,0.00021,4]
[330191637,1719095438165,-326.82220256,0.00021,4]
[330191638,1719095438177,-10085.46843237,0.00021,4]
[330191639,1719095438203,-169.66755356,0.0002078,2]
[330191640,1719095438212,-4693.17062681,0.00021,4]
[330191641,1719095438225,-830.53999099,0.00021,4]
[330191642,1719095438238,-332.697462,0.00021,4]
[330191649,1719095440459,-169.66755356,0.0002079,2]
[330191650,1719095440470,-169.66755356,0.0002079,2]
[330191651,1719095440481,-169.66755356,0.0002079,2]
[330191652,1719095440491,-169.66755356,0.0002079,2]
[330191653,1719095440501,-169.66755356,0.0002079,2]
[330191654,1719095440512,-169.66755356,0.0002079,2]
[330191655,1719095440522,-3070.94298685,0.000209,2]
[330191656,1719095440535,-4429.05701315,0.000209,2]
[330191657,1719095440545,-21639.74298685,0.00021,4]
[330191658,1719095440643,-169.66755356,0.0002079,2]
[330191659,1719095440653,-197056.96810069,0.00021,4]
[330191671,1719095443687,-169.66755356,0.0002079,2]
[330191673,1719095443697,-169.66755356,0.0002079,2]
[330191675,1719095443707,-169.66755356,0.0002079,2]
[330191677,1719095443717,-2.60937432,0.0002079,2]
[330191681,1719095443881,-167.05817924,0.0002079,2]
[330191682,1719095443891,-152.8649353,0.0002079,2]
[330191683,1719095443905,-16.80261826,0.0002079,2]
[330191684,1719095443916,-169.66755356,0.0002079,2]
[330191685,1719095443927,-169.66755356,0.0002079,2]
[330191686,1719095443936,-169.66755356,0.0002079,2]
[330191687,1719095443946,-24.54099,0.0002079,2]
[330191711,1719095446428,-145.12656356,0.0002079,2]
[330191712,1719095446438,-169.66755356,0.0002079,2]
[330191713,1719095446448,-169.66755356,0.0002079,2]
[330191714,1719095446457,-169.66755356,0.0002079,2]
[330191715,1719095446467,-169.66755356,0.0002079,2]
[330191716,1719095446477,-169.66755356,0.00020792,2]
[330191717,1719095446486,-169.66755356,0.00020801,2]
[330191718,1719095446496,-169.66755356,0.00020815,2]
[330191719,1719095446506,-169.66755356,0.0002082,2]
[330191720,1719095446515,-61.44300796,0.00020821,2]
[330191721,1719095446602,-108.2245456,0.00020821,2]
[330191722,1719095446612,-169.66755356,0.00020823,2]
[330191723,1719095446622,-169.66755356,0.00020834,2]
[330191724,1719095446631,-169.66755356,0.00020846,2]
[330191725,1719095446642,-169.66755356,0.00020868,2]
[330191726,1719095446652,-169.66755356,0.00020868,2]
[330191727,1719095446662,-169.66755356,0.00020889,2]
[330191728,1719095446672,-169.66755356,0.0002089,2]
[330191729,1719095446681,-504.0,0.00021,2]
[330191730,1719095446691,-28.8271671,0.00021,4]
[330191731,1719095446703,-5501.10431999,0.00021,4]
[330191732,1719095671096,13815.19122425,0.0001298,2]
[330191733,1719095744609,2347.9177669,0.000112,2]
[330191734,1719095751640,180.93089695,0.0001298,2]
[330191740,1719096502695,-1942.0041,0.0001362,2]
[330191741,1719096533500,649.45579709,0.00026,120]
[330191742,1719096535859,-2003.58276438,0.00014969,2]
[330191743,1719096550870,-639.04131487,0.0001505,2]
[330191744,1719096550892,-589.59903905,0.00015247,2]
[330191745,1719096550914,-519.86065789,0.00015247,2]
[330191746,1719096551406,11236.784,0.0001352,2]
[330191747,1719096582112,-420.74,0.00017041,2]
[330191748,1719096588276,-497.88182528,0.00016509,2]
[330191749,1719096596865,519.86065789,0.00016388,2]
[330191750,1719096598475,394.01773678,0.00016388,2]
[330191751,1719096624284,-499.99,0.00017808,2]
[330191759,1719096632261,-263.744,0.00019305,2]
[330191783,1719096637971,-156.996,0.00019305,2]
[330191786,1719096637981,-402.64,0.00019312,2]
[330191789,1719096637991,-703.83,0.00019358,2]
[330191793,1719096638001,-1000.0,0.00019401,2]
[330191795,1719096638011,-477.31,0.00019401,2]
[330191797,1719096638020,-25023.59487075,0.00019434,2]
[330191798,1719096638131,-3426.85472011,0.00019434,2]
[330191799,1719096638144,-2125.34602237,0.00019434,2]
[330191800,1719096638155,-873.46520675,0.00019434,2]
[330191801,1719096638166,-384.30158449,0.00019434,2]
[330191802,1719096638290,-6574.45759553,0.00019434,2]
[330191803,1719096638309,-250.0,0.00019444,2]
[330191804,1719096638321,-1956.87,0.00019452,2]
[330191805,1719096638331,-150.0,0.00019491,2]
[330191806,1719096638341,-250.0,0.0001953,2]
[330191807,1719096638351,-180.89,0.00019551,2]
[330191808,1719096638360,-931.78,0.00019564,2]
[330191809,1719096638370,-154.41,0.00019567,2]
[330191810,1719096638379,-150.99,0.00019726,2]
[330191811,1719096638389,-166.83,0.00019745,2]
[330191812,1719096638399,-154.41,0.00020077,2]
[330191813,1719096638408,-180.797625,0.00020274,2]
[330191814,1719096638418,-1000.0,0.000204,2]
[330191815,1719096638428,-154.41,0.00020587,2]
[330191816,1719096638438,-877.0998,0.0002079,2]
[330191817,1719096638449,-500.0,0.000208,2]
[330191818,1719096638459,-500.0,0.00020832,2]
[330191819,1719096638469,-200.0,0.00020832,2]
[330191820,1719096638479,-1289.96703862,0.00020898,2]
[330191821,1719096638488,-1289.96703859,0.00020898,2]
[330191822,1719096638498,-1289.96703859,0.00020898,2]
[330191823,1719096638507,-1289.96703859,0.00020899,2]
[330191824,1719096638517,-666.43346471,0.00020899,2]
[330191825,1719096640443,-2375.09157428,0.00020767,2]
[330191826,1719096640456,-623.53357388,0.00020899,2]
[330191827,1719096640469,-1289.96703859,0.00020899,2]
[330191828,1719096640480,-1289.96703859,0.00020899,2]
[330191829,1719096640490,-1289.96703859,0.000209,2]
[330191830,1719096640501,-5625.043,0.000209,2]
[330191831,1719096640514,-621.59916308,0.000209,2]
[330191832,1719096640527,-668.36787551,0.000209,2]
[330191833,1719096640538,-7163.92412449,0.000209,2]
[330191834,1719096640555,-1852.95989709,0.000209,2]
[330191835,1719096640620,-14077.40433524,0.000209,2]
[330191836,1719096640632,-157.6094329,0.000209,2]
[330191837,1719096640641,-153.6761216,0.000209,2]
[330191838,1719096640651,-169.15075272,0.000209,2]
[330191839,1719096640661,-1289.96703859,0.000209,2]
[330191840,1719096640671,-1171.79976363,0.000209,2]
[330191841,1719096640680,-7500.0,0.000209,2]
[330191842,1719096640690,-913.42087054,0.000209,2]
[330191843,1719096640701,-219.83,0.00020904,2]
[330191844,1719096640714,-951.75799994,0.00020993,2]
[330191845,1719096640723,-1831.83045146,0.00020999,5]
[330191846,1719096640733,-311898.34901676,0.00021,7]
[330191847,1719096640919,-11082.14114213,0.00021,7]
[330191848,1719096640931,-272.39480091,0.00021,7]
[330191849,1719096640942,-12508.56552156,0.00021,7]
[330191850,1719096640977,-344.993,0.00021,7]
[330191851,1719096641016,519.47641651,0.00016388,2]
[330191855,1719096643224,9004.09404395,0.0001869,2]
[330191856,1719096643237,-461.30189036,0.0001869,2]
[330191857,1719096643499,-534.60406569,0.0001869,2]
[330191858,1719096643513,-41841.56033697,0.00021,7]
[330191859,1719096643523,-506108.88384401,0.00021,4]
[330191860,1719096643535,-622.24139103,0.00021,4]
[330191873,1719096646207,-269.38241397,0.00021,4]
[330191875,1719096646219,-631.55097061,0.00021,4]
[330191877,1719096646230,-425.51094906,0.00021,4]
[330191879,1719096646242,-500.0,0.00021,4]
[330191881,1719096646253,-3278.93484286,0.00021,4]
[330191891,1719096646345,-6210.98327019,0.00021,4]
[330191894,1719096646357,-66810.86502861,0.00021,4]
[330191896,1719096646368,-1118.02440501,0.00021,4]
[330191898,1719096646380,-33037.85579667,0.00021,4]
[330191900,1719096646391,-3311.1720767,0.00021,4]
[330191912,1719096646497,-16994.01969472,0.00021,4]
[330191914,1719096646508,-572.85,0.00021,4]
[330191917,1719096646525,-1595.25934319,0.00021,4]
[330191920,1719096646543,-14782.96907109,0.00021,4]
[330191933,1719096719030,1000.0,0.00025,30]
[330191934,1719096827504,-300.0,0.00019725,2]
[330191935,1719096843337,300.0,0.00019725,2]
[330191936,1719096920198,162.717862,0.0002,2]
[330191937,1719096952094,250.0,0.0001987,2]
[330191941,1719097653747,-404.25,0.00017827,2]
[330191942,1719097676431,-1125.34,0.00019299,2]
[330191945,1719097832250,-384.03,0.00017441,2]
[330191946,1719097832260,-300.0,0.00019299,2]
[330191947,1719097832270,-11735.0,0.000193,5]
[330191948,1719097832280,-250.0,0.00019302,2]
[330191949,1719097832290,-1000.0,0.00019305,2]
[330191952,1719097832300,-200.0,0.00019335,2]
[330191954,1719097832309,-250.0,0.00019359,2]
[330191956,1719097832319,-224.99,0.00019359,3]
[330191957,1719097832331,-160.45,0.00019418,2]
[330191958,1719097832341,-201.32,0.00019419,2]
[330191959,1719097832352,-160.45,0.0001951,2]
[330191960,1719097832363,-160.45,0.00019602,2]
[330191961,1719097832374,-10077.81,0.00019653,2]
[330191962,1719097832384,-4120.63,0.00019653,2]
[330191963,1719097832394,-160.45,0.00019694,2]
[330191964,1719097832406,-2543.38,0.00019703,2]
[330191965,1719097832416,-150.99,0.00019703,2]
[330191966,1719097832425,-384.03,0.00019705,2]
[330191967,1719097832435,-160.45,0.00019786,2]
[330191968,1719097832445,-159.92,0.00019789,2]
[330191969,1719097832454,-160.45,0.00019877,2]
[330191970,1719097832464,-182.89,0.00019885,2]
[330191971,1719097832473,-177.63,0.00019944,2]
[330191972,1719097832484,-160.45,0.00019969,2]
[330191973,1719097832494,-160.45,0.00020061,2]
[330191974,1719097832504,-160.45,0.00020153,2]
[330191975,1719097832513,-160.45,0.00020245,2]
[330191976,1719097832523,-160.45,0.00020337,2]
[330191977,1719097832533,-160.45,0.00020429,2]
[330191978,1719097832542,-499.99,0.00020564,2]
[330191979,1719097832552,-383.54295739,0.00020617,2]
[330191980,1719097832561,-215.6511,0.00020637,2]
[330191981,1719097832571,-415.07899166,0.00020687,2]
[330191982,1719097832582,-1000.0,0.00020832,2]
[330191983,1719097832592,-500.0,0.00020832,2]
[330191984,1719097832602,-200.0,0.00020832,2]
[330191985,1719097832611,-489.80465646,0.000209,2]
[330191986,1719097832620,-23459.22015996,0.000209,2]
[330191987,1719097832630,-163.26112513,0.000209,2]
[330191988,1719097832640,-153.67612159,0.000209,2]
[330191989,1719097832650,-169.15075272,0.000209,2]
[330191990,1719097832660,-745.1947995,0.000209,2]
[330191991,1719097832672,-554.26311256,0.000209,2]
[330191992,1719097832682,-7500.0,0.000209,2]
[330191993,1719097832692,-3000.0,0.00020993,2]
[330191994,1719097832701,-3386.47424068,0.00020995,2]
[330191995,1719097832711,-172.34676619,0.00020999,2]
[330191996,1719097832720,-150.0,0.00020999,2]
[330191997,1719097832731,-2375.09157428,0.00020999,2]
[330191998,1719097832741,-65945.73967481,0.00021,7]
[330191999,1719097832759,-347.40099992,0.00021,7]
[330192000,1719097832771,-976.99928413,0.00021,7]
[330192001,1719097832783,-635.97483763,0.00021,7]
[330192002,1719097832796,-386.97857912,0.00021,7]
[330192003,1719097832807,-540.396828,0.00021,7]
[330192004,1719097832819,-399.20391486,0.00021,7]
[330192005,1719097832848,-16773.30015096,0.00021,7]
[330192006,1719097832862,-17246.31544845,0.00021,7]
[330192023,1719097838476,-172.34676618,0.00020999,2]
[330192024,1719097838486,-35737.7032338,0.00021,7]
[330192025,1719097838510,-2000.0,0.00021,7]
[330192072,1719097840366,-1953.98514634,0.00021,7]
[330192073,1719097840381,-6780.06678316,0.00021,7]
[330192074,1719097840493,-610.30719893,0.00021,7]
[330192075,1719097840505,-3641.6574235,0.00021,7]
[330192076,1719097840518,-40539.04297662,0.00021,7]
[330192077,1719097840528,-336590.96428824,0.00021,4]
[330192078,1719097840541,-7765.37092834,0.00021,4]
[330192079,1719097840645,-994.07569527,0.00021,4]